[Event "Fagernes Chess GM-Swiss 2025"]
[Site "Fagernes"]
[Date "2025.04.19"]
[Round "8.4"]
[White "Kantor, Gergely"]
[Black "Willow, Jonah B"]
[Result "1-0"]
[Annotator "TA"]
[ECO "C11"]
[WhiteElo "2578"]
[BlackElo "2471"]
[PlyCount "63"]
[EventDate "2025.04.12"]
[EventCountry "NOR"]
[SourceTitle "playchess.com"]
[Source "ChessBase"]
[SourceQuality "1"]
[TimeControl "40/6000+30:2400+30"]

{[%evp 13,63,3,2,-38,-37,-58,-57,-43,-56,-85,-70,-77,-80,-74,-90,-93,-104,-131,-83,-191,-196,-346,-90,-133,-140,-140,-145,-143,-100,-249,-189,-165,-293,-218,-84,-120,-115,-117,762,755,757,675,735,663,722,704,1077,1047,29981,29982,29979,29979]} 1. e4 {[%emt 0:02:16][%cal Be2e4,Be4e5][%mdl 32]} e6 {[%emt 0:02:05]} 2. d4 {[%emt 0:00:05]} d5 {[%emt 0:00:04]} 3. Nc3 {[%emt 0:00:02]} Nf6 {[%emt 0:00:16]} 4. e5 {[%emt 0:00:03]} Nfd7 {[%emt 0:00:04]} 5. Nce2 {[%emt 0:00:06]} c5 {[%emt 0:00:07]} 6. c3 {[%emt 0:00:02]} Nc6 {[%emt 0:00:05][%cal Bb8c6,Bc6a5,Ba5c4][%mdl 32]} 7. Nf3 {[%emt 0:00:04]} Be7 {[%emt 0:00:43]} 8. a4 $146 {[%emt 0:00:08] C11: French: Classical System: 4 e5 and 4 Bg5 dxe4.} (8. g3 b5 9. h4 b4 10. Nf4 a5 11. Bd3 a4 12. a3 bxc3 13. bxc3 Qc7 14. O-O Nb6 15. Nh5 Kf8 16. Ng5 Bxg5 17. Bxg5 {1-0 Caruana,F (2805)-Erigaisi,A (2801) Wch Blitz New York 2024 (6)}) 8... O-O {[%emt 0:11:52]} 9. Nf4 {[%emt 0:00:08]} Qa5 $1 {[%emt 0:07:21]} 10. Bd2 {[%emt 0:00:29] Black is slightly better.} Qb6 {[%emt 0:04:24][%csl LRb2,LRd4][%cal Rc5d4]} 11. a5 {[%emt 0:00:27]} Nxa5 {[%emt 0:02:43]} 12. b4 {[%emt 0:00:09]} cxb4 {[%emt 0:01:35]} 13. Bd3 {[%emt 0:00:04]} Nc4 {[%emt 0:07:32]} 14. h4 {[%emt 0:00:06][%cal Od3h7]} h6 {[%emt 0:04:08]} 15. Rb1 {[%emt 0:00:22]} a5 {[%emt 0:06:36]} (15... Nxd2 $142 16. Nxd2 Qd8 (16... a5 17. Nh5 $17) 17. cxb4 Qb6 (17... Bxh4 18. Qg4 $11)) 16. Kf1 {[%emt 0:34:30]} (16. Rh3 $17 {was worth a try.}) 16... a4 $1 $19 {[%emt 0:07:12]} 17. Nh5 {[%emt 0:21:59]} (17. cxb4 $142 a3 18. Bxc4 dxc4 19. Qc2) 17... f5 $2 {[%emt 0:10:28]} (17... a3 $1 $19 {[%cal Ra3a2] and ...a2 should not be overlooked} 18. cxb4 a2) 18. Rh3 {[%emt 0:05:14]} Rf7 {[%emt 0:09:11]} 19. Rg3 {[%emt 0:05:42]} Nxd2+ {[%emt 0:05:58]} 20. Qxd2 {[%emt 0:02:10]} Kh7 {[%emt 0:01:59]} 21. Ke2 {[%emt 0:08:09] [#]} (21. cxb4 $2 a3 22. Nf4 Nf8 $17) (21. Ng5+ $17 hxg5 22. hxg5) 21... g6 $1 {[%emt 0:06:04]} 22. Ng5+ {[%emt 0:03:24]} hxg5 {[%emt 0:01:51]} 23. hxg5 {[%emt 0:00:12][%cal Bh4g5,Bg5f6][%mdl 32]} Kg8 {[%emt 0:00:38]} (23... gxh5 24. g6+ Kg8 25. gxf7+ Kxf7 26. Qh6 $18) (23... Kh8 $1 $19 {and Black stays clearly on top.} 24. Nf6 Nf8 25. Rh3+ Nh7) 24. Nf6+ $17 {[%emt 0:02:19] [#]} Kf8 $1 {[%emt 0:05:13][%cal Bg8f8,Bf8e8,Be8d8][%mdl 32]} 25. Rh3 {[%emt 0:05:12]} Bxf6 {[%emt 0:00:18][%mdl 8192]} (25... Rg7 $17 26. Rh8+ (26. cxb4 $2 {too greedy.} Kf7 $19) 26... Kf7 27. Nxd7 (27. cxb4 $2 Nf8 $19) 27... Bxd7 28. Rxa8 b3) 26. gxf6 $18 {[%emt 0:00:09][%cal Rh3h8]} Ke8 {[%emt 0:00:08]} 27. Rxb4 {[%emt 0:00:36]} Qa5 {[%emt 0:00:53]} 28. Rh8+ {[%emt 0:04:22]} Nf8 {[%emt 0:01:57]} 29. Qh6 {[%emt 0:04:26][%cal Oh6g7] White wants to mate with Qg7!.} Qc7 {[%emt 0:00:04]} 30. Qxg6 {[%emt 0:04:27] Strongly threatening Rb1.} a3 {[%emt 0:02:01]} 31. Rb1 {[%emt 0:00:45]} Kd8 {[%emt 0:01:20] [#]} 32. Qg7 $3 {[%emt 0:01:05][%mdl 512] Quite a comeback for White.   Weighted Error Value: White=0.28 (precise) /Black=0.63  Loses game:     	---       	Black=1      Missed win:     	---       	Black=1      Mistake:       	White=3     	Black=2      Inaccurate:     	White=2     	Black=1      OK:         	White=5     	Black=6      Best:        	White=1     	Black=2      Strong:       	---       	Black=4} 1-0

[Event "Fagernes Chess GM-Swiss 2025"]
[Site "Fagernes"]
[Date "2025.04.19"]
[Round "8.5"]
[White "Moksh Amit Doshi"]
[Black "Makhnev, Denis"]
[Result "1/2-1/2"]
[Annotator "RC"]
[ECO "E92"]
[WhiteElo "2369"]
[BlackElo "2537"]
[PlyCount "21"]
[EventDate "2025.04.12"]
[EventCountry "NOR"]
[SourceTitle "playchess.com"]
[Source "ChessBase"]
[SourceQuality "1"]
[TimeControl "40/6000+30:2400+30"]

1. d4 {[%emt 0:06:22]} Nf6 {[%emt 0:00:09]} 2. c4 {[%emt 0:00:06]} g6 {[%emt 0:00:06]} 3. Nc3 {[%emt 0:00:33]} Bg7 {[%emt 0:00:08]} 4. e4 {[%emt 0:00:07]} d6 {[%emt 0:00:05]} 5. Nf3 {[%emt 0:00:07]} O-O {[%emt 0:00:06]} 6. Be2 {[%emt 0:00:08]} e5 {[%emt 0:00:07]} 7. dxe5 {[%emt 0:00:29]} dxe5 {[%emt 0:00:09]} 8. Qxd8 {[%emt 0:00:06]} Rxd8 {[%emt 0:00:06]} 9. Bg5 {[%emt 0:00:10]} Re8 {[%emt 0:20:24]} 10. Nd5 {[%emt 0:00:12]} Nxd5 {[%emt 0:00:08]} 11. cxd5 {[%emt 0:00:06]} 1/2-1/2

[Event "Fagernes Chess GM-Swiss 2025"]
[Site "Fagernes"]
[Date "2025.04.19"]
[Round "8.6"]
[White "Kulaots, Kaido"]
[Black "Zhou, Yang-Fan"]
[Result "1/2-1/2"]
[Annotator "RC"]
[ECO "B23"]
[WhiteElo "2510"]
[BlackElo "2418"]
[PlyCount "38"]
[EventDate "2025.04.12"]
[EventCountry "NOR"]
[SourceTitle "playchess.com"]
[Source "ChessBase"]
[SourceQuality "1"]
[TimeControl "40/6000+30:2400+30"]

1. e4 c5 2. Nc3 a6 3. Nge2 d6 4. g3 e5 5. Bg2 g6 6. d3 Bg7 7. a3 Nc6 8. Nd5 Nge7 9. Nec3 Nxd5 10. Nxd5 Be6 11. b4 cxb4 12. axb4 O-O 13. O-O Rc8 14. Bd2 f5 15. exf5 gxf5 16. b5 axb5 17. Rb1 f4 18. c3 b4 19. Nxb4 d5 1/2-1/2

[Event "Fagernes Chess GM-Swiss 2025"]
[Site "Fagernes"]
[Date "2025.04.19"]
[Round "8.7"]
[White "Kaasen, Tor Fredrik"]
[Black "Ghasi, Ameet K"]
[Result "1/2-1/2"]
[Annotator "RC"]
[ECO "E73"]
[WhiteElo "2472"]
[BlackElo "2502"]
[PlyCount "220"]
[EventDate "2025.04.12"]
[EventCountry "NOR"]
[SourceTitle "playchess.com"]
[Source "ChessBase"]
[SourceQuality "1"]
[TimeControl "40/6000+30:2400+30"]

1. d4 {[%emt 0:02:01]} Nf6 {[%emt 0:02:06]} 2. c4 {[%emt 0:01:12]} g6 {[%emt 0:00:07]} 3. Nc3 {[%emt 0:00:30]} Bg7 {[%emt 0:00:07]} 4. e4 {[%emt 0:00:08]} d6 {[%emt 0:00:03]} 5. Be2 {[%emt 0:00:12]} O-O {[%emt 0:00:14]} 6. Be3 {[%emt 0:00:08]} Na6 {[%emt 0:00:24]} 7. h4 {[%emt 0:01:22]} h5 {[%emt 0:00:09]} 8. Nf3 {[%emt 0:01:05]} Ng4 {[%emt 0:12:39]} 9. Bg5 {[%emt 0:01:43]} c6 {[%emt 0:11:12]} 10. O-O {[%emt 0:03:15]} f6 {[%emt 0:15:46]} 11. Bd2 {[%emt 0:02:42]} e5 {[%emt 0:00:11]} 12. Rb1 {[%emt 0:09:01]} exd4 {[%emt 0:07:24]} 13. Nxd4 {[%emt 0:03:30]} f5 {[%emt 0:15:05]} 14. Nf3 {[%emt 0:09:45]} f4 {[%emt 0:08:10]} 15. b4 {[%emt 0:21:33]} Ne5 {[%emt 0:02:17]} 16. Na4 {[%emt 0:18:45]} Nxf3+ {[%emt 0:05:52]} 17. Bxf3 {[%emt 0:00:06]} Qxh4 {[%emt 0:00:14]} 18. b5 {[%emt 0:05:15]} Nc5 {[%emt 0:13:35]} 19. bxc6 {[%emt 0:09:26]} bxc6 {[%emt 0:00:05]} 20. Nxc5 {[%emt 0:00:15]} dxc5 {[%emt 0:00:01]} 21. Qa4 {[%emt 0:00:27]} g5 {[%emt 0:05:59]} 22. Qxc6 {[%emt 0:06:01]} g4 {[%emt 0:00:12]} 23. Qxa8 {[%emt 0:08:58]} gxf3 {[%emt 0:00:49]} 24. e5 {[%emt 0:00:12]} fxg2 {[%emt 0:03:38]} 25. Qxg2 {[%emt 0:00:13]} Rf5 {[%emt 0:02:45]} 26. Qh2 {[%emt 0:02:34]} Qd8 {[%emt 0:01:24]} 27. Bxf4 {[%emt 0:00:40]} Be6 {[%emt 0:00:35]} 28. Rfd1 {[%emt 0:00:19]} Qe8 {[%emt 0:01:33]} 29. Qh4 {[%emt 0:00:55]} Qg6+ {[%emt 0:01:12]} 30. Kh2 {[%emt 0:00:36]} Qf7 {[%emt 0:00:47]} 31. Bg3 {[%emt 0:00:40]} Kh7 {[%emt 0:00:50]} 32. Rd6 {[%emt 0:01:54]} Bf8 {[%emt 0:00:02]} 33. Rxe6 {[%emt 0:00:28]} Qxe6 {[%emt 0:00:03]} 34. Rb7+ {[%emt 0:00:18]} Bg7 {[%emt 0:00:55]} 35. Rxa7 {[%emt 0:00:35]} Qg6 {[%emt 0:00:23]} 36. Rd7 {[%emt 0:00:30]} Rg5 {[%emt 0:00:12]} 37. Rd6 {[%emt 0:00:47]} Qf5 {[%emt 0:00:01]} 38. Qf4 {[%emt 0:00:46]} h4 {[%emt 0:00:19]} 39. Qxf5+ Rxf5 {[%emt 0:00:01]} 40. Bxh4 {[%emt 0:01:10]} Bxe5+ {[%emt 0:00:09]} 41. Bg3 {[%emt 0:40:05]} Rxf2+ {[%emt 0:04:02]} 42. Kh3 {[%emt 0:06:20]} Rf3 {[%emt 0:00:19]} 43. Rd5 {[%emt 0:00:00]} Rxg3+ {[%emt 0:00:41]} 44. Kh4 {[%emt 0:00:00]} Re3 {[%emt 0:00:19]} 45. Rxc5 {[%emt 0:00:00]} Kg6 {[%emt 0:02:14]} 46. Kg4 {[%emt 0:00:00]} Rg3+ {[%emt 0:00:32]} 47. Kh4 {[%emt 0:00:00]} Rg5 {[%emt 0:06:17]} 48. Rd5 {[%emt 0:00:00]} Kf6 {[%emt 0:00:51]} 49. Rd8 {[%emt 0:00:00]} Kf5 {[%emt 0:04:57]} 50. Rf8+ {[%emt 0:00:00]} Bf6 {[%emt 0:00:03]} 51. Kh3 {[%emt 0:00:00]} Rg6 {[%emt 0:00:32]} 52. Re8 {[%emt 0:00:00]} Be5 {[%emt 0:05:12]} 53. Rf8+ {[%emt 0:00:00]} Ke4 {[%emt 0:00:14]} 54. Rf1 {[%emt 0:00:00]} Bf4 {[%emt 0:04:39]} 55. c5 {[%emt 0:00:00]} Rg3+ {[%emt 0:02:39]} 56. Kh2 {[%emt 0:00:00]} Rg6+ {[%emt 0:10:51]} 57. Kh3 {[%emt 0:00:00]} Be3 {[%emt 0:00:28]} 58. a4 {[%emt 0:00:00]} Bxc5 {[%emt 0:03:34]} 59. a5 {[%emt 0:00:00]} Be3 {[%emt 0:00:49]} 60. a6 {[%emt 0:00:00]} Rxa6 {[%emt 0:00:13]} 61. Kg4 {[%emt 0:00:00]} Rg6+ {[%emt 0:00:19]} 62. Kh3 {[%emt 0:00:00]} Bf4 {[%emt 0:00:36]} 63. Re1+ {[%emt 0:00:00]} Kf5 {[%emt 0:00:36]} 64. Rf1 {[%emt 0:00:00]} Rh6+ {[%emt 0:01:11]} 65. Kg2 {[%emt 0:00:00]} Kg4 {[%emt 0:00:04]} 66. Rf2 {[%emt 0:00:27]} Re6 {[%emt 0:02:18]} 67. Kf1 {[%emt 0:00:25]} Kg3 {[%emt 0:00:47]} 68. Rg2+ {[%emt 0:00:21]} Kf3 {[%emt 0:00:01]} 69. Rf2+ {[%emt 0:00:18]} Ke4 {[%emt 0:00:04]} 70. Ra2 {[%emt 0:00:27]} Rg6 {[%emt 0:00:39]} 71. Rg2 {[%emt 0:00:32]} Rh6 {[%emt 0:00:55]} 72. Ke2 {[%emt 0:01:22]} Rd6 {[%emt 0:00:04]} 73. Kf1 {[%emt 0:01:39]} Be3 {[%emt 0:00:06]} 74. Ke2 {[%emt 0:00:26]} Rc6 {[%emt 0:00:32]} 75. Rg4+ {[%emt 0:00:40]} Bf4 {[%emt 0:00:01]} 76. Rg2 {[%emt 0:00:17]} Rh6 {[%emt 0:00:53]} 77. Kf1 {[%emt 0:00:17]} Be3 {[%emt 0:00:10]} 78. Ke2 {[%emt 0:00:11]} Rh4 {[%emt 0:00:05]} 79. Kf1 {[%emt 0:00:30]} Kd3 {[%emt 0:00:38]} 80. Rg3 {[%emt 0:01:45]} Rh2 {[%emt 0:00:02]} 81. Rf3 {[%emt 0:00:33]} Ke4 {[%emt 0:02:22]} 82. Rg3 {[%emt 0:02:30]} Kf4 {[%emt 0:00:01]} 83. Rg2 {[%emt 0:00:36]} Rh8 {[%emt 0:00:01]} 84. Ke2 {[%emt 0:00:11]} Rd8 {[%emt 0:00:03]} 85. Kf1 {[%emt 0:00:19]} Kf3 {[%emt 0:00:52]} 86. Rf2+ {[%emt 0:00:05]} Ke4 {[%emt 0:00:03]} 87. Rg2 {[%emt 0:00:29]} Kd3 {[%emt 0:00:54]} 88. Rg7 {[%emt 0:00:36]} Rf8+ {[%emt 0:00:49]} 89. Kg2 {[%emt 0:00:08]} Ke2 {[%emt 0:00:01]} 90. Kh3 {[%emt 0:00:46]} Rf1 {[%emt 0:00:17]} 91. Rg2+ {[%emt 0:00:55]} Bf2 {[%emt 0:00:11]} 92. Rg5 {[%emt 0:00:10]} Be3 {[%emt 0:00:51]} 93. Rg2+ {[%emt 0:00:06]} Kf3 {[%emt 0:00:06]} 94. Rg3+ {[%emt 0:00:05]} Kf4 {[%emt 0:00:01]} 95. Rg4+ {[%emt 0:00:09]} Kf5 {[%emt 0:00:06]} 96. Ra4 {[%emt 0:00:42]} Bc5 {[%emt 0:00:38]} 97. Kg2 {[%emt 0:00:31]} Rf2+ {[%emt 0:00:03]} 98. Kg3 {[%emt 0:00:06]} Rc2 {[%emt 0:00:03]} 99. Rf4+ {[%emt 0:00:16]} Ke5 {[%emt 0:00:01]} 100. Ra4 {[%emt 0:00:18]} Bd4 {[%emt 0:00:14]} 101. Kf3 {[%emt 0:00:26]} Rc3+ {[%emt 0:00:05]} 102. Kg4 {[%emt 0:00:34]} Ke4 {[%emt 0:00:03]} 103. Ra8 {[%emt 0:00:23]} Rc2 {[%emt 0:00:23]} 104. Ra3 {[%emt 0:00:11]} Rc7 {[%emt 0:00:07]} 105. Ra4 {[%emt 0:01:00]} Rg7+ {[%emt 0:00:02]} 106. Kh4 {[%emt 0:00:12]} Ke5 {[%emt 0:00:27]} 107. Kh3 {[%emt 0:00:04]} Be3 {[%emt 0:02:16]} 108. Rg4 {[%emt 0:00:06]} Rf7 {[%emt 0:00:04]} 109. Kg3 {[%emt 0:00:07]} Bf4+ {[%emt 0:00:09]} 110. Kg2 {[%emt 0:00:19]} Bg3 {[%emt 0:00:00]} 1/2-1/2

[Event "Fagernes Chess GM-Swiss 2025"]
[Site "Fagernes"]
[Date "2025.04.19"]
[Round "8.8"]
[White "Urazayev, Arystanbek"]
[Black "Kvaloy, Aksel Bu"]
[Result "1-0"]
[Annotator "RC"]
[ECO "C02"]
[WhiteElo "2467"]
[BlackElo "2481"]
[PlyCount "119"]
[EventDate "2025.04.12"]
[EventCountry "NOR"]
[SourceTitle "playchess.com"]
[Source "ChessBase"]
[SourceQuality "1"]
[TimeControl "40/6000+30:2400+30"]

1. e4 {[%emt 0:00:27]} e6 {[%emt 0:00:01]} 2. d4 {[%emt 0:00:05]} d5 {[%emt 0:00:03]} 3. e5 {[%emt 0:00:03]} c5 {[%emt 0:00:05]} 4. c3 {[%emt 0:00:03]} Nc6 {[%emt 0:00:05]} 5. Nf3 {[%emt 0:00:06]} Bd7 {[%emt 0:00:04]} 6. Be2 {[%emt 0:00:58]} f6 {[%emt 0:00:24]} 7. O-O {[%emt 0:02:08]} fxe5 {[%emt 0:00:25]} 8. Nxe5 {[%emt 0:00:11]} Nxe5 {[%emt 0:00:04]} 9. dxe5 {[%emt 0:00:08]} Qc7 {[%emt 0:00:04]} 10. Re1 {[%emt 0:00:41]} O-O-O {[%emt 0:00:37]} 11. Nd2 {[%emt 0:00:24]} Qxe5 {[%emt 0:23:03]} 12. Nf3 {[%emt 0:03:10]} Qc7 {[%emt 0:01:32]} 13. Ng5 {[%emt 0:01:10]} Nh6 {[%emt 0:00:54]} 14. Bh5 {[%emt 0:01:10]} Bd6 {[%emt 0:19:08]} 15. g3 {[%emt 0:05:55]} g6 {[%emt 0:06:26]} 16. Nxe6 {[%emt 0:04:53]} Bxe6 {[%emt 0:00:40]} 17. Rxe6 {[%emt 0:00:58]} Qd7 {[%emt 0:23:38]} 18. Qxd5 {[%emt 0:22:02]} Bxg3 {[%emt 0:01:22]} 19. Qxc5+ {[%emt 0:02:58]} Bc7 {[%emt 0:08:50]} 20. Re7 {[%emt 0:13:14]} Qd6 {[%emt 0:00:26]} 21. Qxd6 {[%emt 0:00:48]} Bxd6 {[%emt 0:00:10]} 22. Re4 {[%emt 0:01:01]} gxh5 {[%emt 0:06:59]} 23. Bxh6 {[%emt 0:00:57]} Rhg8+ {[%emt 0:00:07]} 24. Kh1 {[%emt 0:06:06]} Rg4 {[%emt 0:03:44]} 25. Rxg4 {[%emt 0:08:22]} hxg4 {[%emt 0:00:04]} 26. Rd1 {[%emt 0:00:18]} Bc7 {[%emt 0:03:35]} 27. Rxd8+ {[%emt 0:11:12]} Kxd8 {[%emt 0:00:05]} 28. Kg2 {[%emt 0:00:04]} Ke7 {[%emt 0:00:12]} 29. h3 {[%emt 0:07:35]} gxh3+ {[%emt 0:00:10]} 30. Kxh3 {[%emt 0:00:04]} Kf6 {[%emt 0:00:27]} 31. Kg4 {[%emt 0:04:02]} Kg6 {[%emt 0:06:31]} 32. Bf4 {[%emt 0:02:19]} Bd8 {[%emt 0:01:00]} 33. Bb8 {[%emt 0:01:28]} Bb6 {[%emt 0:01:25]} 34. Bg3 {[%emt 0:02:38]} h5+ {[%emt 0:00:53]} 35. Kf4 {[%emt 0:02:05]} Bd8 {[%emt 0:00:08]} 36. Ke4 {[%emt 0:01:20]} Kg5 {[%emt 0:00:50]} 37. f3 {[%emt 0:03:02]} a6 {[%emt 0:01:19]} 38. a4 {[%emt 0:01:31]} Bb6 {[%emt 0:00:29]} 39. Bd6 {[%emt 0:02:07]} h4 {[%emt 0:01:11]} 40. f4+ {[%emt 0:01:55]} Kf6 {[%emt 0:01:57]} 41. Be5+ {[%emt 0:40:34]} Kg6 {[%emt 0:04:30]} 42. b4 {[%emt 0:00:00]} h3 {[%emt 0:05:26]} 43. f5+ {[%emt 0:00:00]} Kg5 {[%emt 0:03:32]} 44. Bf4+ {[%emt 0:00:00]} Kf6 {[%emt 0:00:27]} 45. Bh2 {[%emt 0:00:00]} Bf2 {[%emt 0:06:15]} 46. c4 {[%emt 0:00:00]} Be1 {[%emt 0:01:45]} 47. b5 {[%emt 0:00:00]} axb5 {[%emt 0:00:28]} 48. axb5 {[%emt 0:00:00]} Bf2 {[%emt 0:08:49]} 49. Be5+ {[%emt 0:00:05]} Kg5 {[%emt 0:00:38]} 50. Bf4+ {[%emt 0:00:18]} Kf6 {[%emt 0:00:26]} 51. Bh2 {[%emt 0:00:11]} Bb6 {[%emt 0:04:45]} 52. Be5+ {[%emt 0:04:24]} Kg5 {[%emt 0:00:12]} 53. f6 {[%emt 0:00:40]} Bd8 {[%emt 0:05:19]} 54. f7 {[%emt 0:00:38]} Be7 {[%emt 0:00:03]} 55. Kd5 {[%emt 0:00:21]} Kg6 {[%emt 0:00:25]} 56. Ke6 {[%emt 0:00:48]} Bc5 {[%emt 0:02:04]} 57. b6 {[%emt 0:00:24]} Bf8 {[%emt 0:01:40]} 58. Bh2 {[%emt 0:00:28]} Kg7 {[%emt 0:01:57]} 59. Bg1 {[%emt 0:00:38]} Bb4 {[%emt 0:01:35]} 60. c5 {[%emt 0:00:28]} 1-0

[Event "Fagernes Chess GM-Swiss 2025"]
[Site "Fagernes"]
[Date "2025.04.19"]
[Round "8.9"]
[White "Johansson, Linus"]
[Black "Mitusov, Semen"]
[Result "1/2-1/2"]
[Annotator "RC"]
[ECO "B00"]
[WhiteElo "2392"]
[BlackElo "2459"]
[PlyCount "133"]
[EventDate "2025.04.12"]
[EventCountry "NOR"]
[SourceTitle "playchess.com"]
[Source "ChessBase"]
[SourceQuality "1"]
[TimeControl "40/6000+30:2400+30"]

1. d4 {[%emt 0:00:03]} a6 {[%emt 0:02:00]} 2. e4 {[%emt 0:00:28]} c6 {[%emt 0:00:25]} 3. Nf3 {[%emt 0:01:14]} d5 {[%emt 0:00:19]} 4. Nc3 {[%emt 0:00:48]} Bg4 {[%emt 0:03:14]} 5. h3 {[%emt 0:01:14]} Bxf3 {[%emt 0:04:17]} 6. Qxf3 {[%emt 0:00:07]} e6 {[%emt 0:00:52]} 7. Bd3 {[%emt 0:02:57]} Nf6 {[%emt 0:03:26]} 8. e5 {[%emt 0:00:40]} Nfd7 {[%emt 0:00:55]} 9. Ne2 {[%emt 0:00:07]} c5 {[%emt 0:00:24]} 10. c3 {[%emt 0:00:16]} cxd4 {[%emt 0:02:52]} 11. cxd4 {[%emt 0:00:02]} Bb4+ {[%emt 0:00:08]} 12. Kf1 {[%emt 0:02:07]} Nc6 {[%emt 0:10:35]} 13. a3 {[%emt 0:02:36]} Be7 {[%emt 0:03:24]} 14. Bd2 {[%emt 0:04:45]} Qb6 {[%emt 0:07:38]} 15. Bc3 {[%emt 0:00:48]} Rf8 {[%emt 0:00:43]} 16. Qg4 {[%emt 0:16:34]} g5 {[%emt 0:09:57]} 17. h4 {[%emt 0:04:27]} h6 {[%emt 0:09:15]} 18. hxg5 {[%emt 0:01:10]} hxg5 {[%emt 0:00:02]} 19. Rh6 {[%emt 0:14:01]} O-O-O {[%emt 0:01:12]} 20. Kg1 {[%emt 0:01:07]} Rh8 {[%emt 0:07:05]} 21. Rxh8 {[%emt 0:03:39]} Rxh8 {[%emt 0:00:02]} 22. g3 {[%emt 0:00:10]} Qd8 {[%emt 0:09:52]} 23. Kg2 {[%emt 0:02:32]} Qg8 {[%emt 0:00:16]} 24. Rh1 {[%emt 0:02:47]} f5 {[%emt 0:00:18]} 25. exf6 {[%emt 0:05:33]} Rxh1 {[%emt 0:00:05]} 26. Kxh1 {[%emt 0:00:15]} Nxf6 {[%emt 0:00:04]} 27. Qf3 {[%emt 0:05:49]} Kd7 {[%emt 0:01:19]} 28. Kg2 {[%emt 0:02:02]} Qg7 {[%emt 0:00:55]} 29. Nc1 {[%emt 0:03:11]} g4 {[%emt 0:09:57]} 30. Qd1 {[%emt 0:04:14]} Qg5 {[%emt 0:01:03]} 31. Bd2 {[%emt 0:02:00]} Qh5 {[%emt 0:00:33]} 32. Be3 {[%emt 0:00:26]} Bd6 {[%emt 0:03:33]} 33. Qh1 {[%emt 0:02:25]} Qxh1+ {[%emt 0:01:33]} 34. Kxh1 {[%emt 0:00:02]} Ne7 {[%emt 0:04:47]} 35. Nb3 {[%emt 0:03:44]} Nf5 {[%emt 0:02:18]} 36. Bc1 {[%emt 0:01:02]} Kc6 {[%emt 0:04:44]} 37. Kg2 {[%emt 0:00:41]} b5 {[%emt 0:03:29]} 38. Kf1 {[%emt 0:03:41]} Bf8 {[%emt 0:00:13]} 39. Bf4 {[%emt 0:02:19]} Ng8 {[%emt 0:05:25]} 40. Be5 {[%emt 0:05:59]} Ngh6 {[%emt 0:00:12]} 41. Be2 {[%emt 0:47:08]} Be7 {[%emt 0:07:43]} 42. Ke1 {[%emt 0:00:00]} Kb6 {[%emt 0:09:34]} 43. Kd1 {[%emt 0:00:00]} a5 {[%emt 0:00:34]} 44. Nc1 {[%emt 0:00:00]} Nd6 {[%emt 0:08:31]} 45. Bf4 {[%emt 0:00:00]} Nhf5 {[%emt 0:01:30]} 46. Bxg4 {[%emt 0:00:00]} Nxd4 {[%emt 0:00:27]} 47. Be3 {[%emt 0:00:00]} e5 {[%emt 0:01:28]} 48. Nd3 {[%emt 0:00:00]} Nc4 {[%emt 0:01:37]} 49. Bxd4+ {[%emt 0:00:00]} exd4 {[%emt 0:00:02]} 50. Bd7 {[%emt 0:00:00]} a4 {[%emt 0:02:26]} 51. f4 {[%emt 0:00:00]} b4 {[%emt 0:02:23]} 52. axb4 {[%emt 0:00:00]} Nxb2+ {[%emt 0:00:13]} 53. Nxb2 {[%emt 0:00:00]} a3 {[%emt 0:00:08]} 54. Kc2 {[%emt 0:00:00]} axb2 {[%emt 0:02:56]} 55. Bf5 {[%emt 0:00:00]} Bxb4 {[%emt 0:00:46]} 56. Kd1 {[%emt 0:00:00]} Kc7 {[%emt 0:01:15]} 57. Ke2 {[%emt 0:00:00]} Kd8 {[%emt 0:00:11]} 58. g4 {[%emt 0:00:00]} Ke7 {[%emt 0:00:04]} 59. g5 {[%emt 0:00:00]} Kf7 {[%emt 0:00:05]} 60. Kf3 {[%emt 0:00:00]} Kg7 {[%emt 0:00:07]} 61. Bd3 {[%emt 0:00:00]} Bd6 {[%emt 0:00:08]} 62. Kg4 {[%emt 0:00:00]} Bc7 {[%emt 0:00:05]} 63. f5 {[%emt 0:00:00]} Bd8 {[%emt 0:00:04]} 64. Kf4 {[%emt 0:00:00]} Bc7+ {[%emt 0:00:05]} 65. Kg4 {[%emt 0:00:00]} Bd8 {[%emt 0:00:02]} 66. f6+ {[%emt 0:00:00]} Bxf6 {[%emt 0:00:07]} 67. gxf6+ {[%emt 0:00:00]} 1/2-1/2

[Event "Fagernes Chess GM-Swiss 2025"]
[Site "Fagernes"]
[Date "2025.04.19"]
[Round "8.10"]
[White "Rozentalis, Eduardas"]
[Black "Hillarp Persson, Tiger"]
[Result "1/2-1/2"]
[Annotator "RC"]
[ECO "B51"]
[WhiteElo "2481"]
[BlackElo "2462"]
[PlyCount "85"]
[EventDate "2025.04.12"]
[EventCountry "NOR"]
[SourceTitle "playchess.com"]
[Source "ChessBase"]
[SourceQuality "1"]
[TimeControl "40/6000+30:2400+30"]

1. e4 {[%emt 0:00:03]} c5 {[%emt 0:01:56]} 2. Nf3 {[%emt 0:00:09]} d6 {[%emt 0:00:07]} 3. Bb5+ {[%emt 0:00:13]} Nd7 {[%emt 0:00:07]} 4. Ba4 {[%emt 0:00:41]} Ngf6 {[%emt 0:00:07]} 5. O-O {[%emt 0:00:11]} e6 {[%emt 0:00:05]} 6. d3 {[%emt 0:00:28]} Be7 {[%emt 0:03:14]} 7. c4 {[%emt 0:00:22]} O-O {[%emt 0:02:03]} 8. Nc3 {[%emt 0:01:26]} Ne5 {[%emt 0:00:28]} 9. a3 {[%emt 0:06:05]} Bd7 {[%emt 0:21:50]} 10. Bc2 {[%emt 0:05:02]} Qc7 {[%emt 0:08:15]} 11. Nxe5 {[%emt 0:08:59]} dxe5 {[%emt 0:00:12]} 12. Qe2 {[%emt 0:01:48]} h6 {[%emt 0:09:41]} 13. g3 {[%emt 0:04:45]} a6 {[%emt 0:01:47]} 14. a4 {[%emt 0:04:59]} Bc6 {[%emt 0:18:06]} 15. f4 {[%emt 0:01:20]} exf4 {[%emt 0:00:06]} 16. gxf4 {[%emt 0:00:23]} Nh7 {[%emt 0:00:54]} 17. Be3 {[%emt 0:05:46]} f5 {[%emt 0:00:59]} 18. Rf2 {[%emt 0:07:52]} Kh8 {[%emt 0:03:54]} 19. Raf1 {[%emt 0:04:25]} Rad8 {[%emt 0:05:12]} 20. Rg2 {[%emt 0:04:05]} Nf6 {[%emt 0:06:07]} 21. h3 {[%emt 0:02:19]} Be8 {[%emt 0:07:02]} 22. Kh1 {[%emt 0:05:06]} Nh5 {[%emt 0:04:11]} 23. Qf3 {[%emt 0:13:11]} Nf6 {[%emt 0:04:29]} 24. Rfg1 {[%emt 0:04:02]} Rg8 {[%emt 0:00:09]} 25. Qf2 {[%emt 0:01:28]} Bf8 {[%emt 0:02:14]} 26. Qh4 {[%emt 0:07:40]} Bf7 {[%emt 0:03:22]} 27. b3 {[%emt 0:08:47]} Be7 {[%emt 0:00:59]} 28. Qf2 {[%emt 0:00:46]} g6 {[%emt 0:00:48]} 29. Nb1 {[%emt 0:04:13]} Be8 {[%emt 0:02:02]} 30. Nd2 {[%emt 0:00:31]} Kh7 {[%emt 0:02:48]} 31. Nf3 {[%emt 0:03:52]} Rc8 {[%emt 0:01:10]} 32. Ne5 {[%emt 0:00:49]} Nd7 {[%emt 0:00:23]} 33. d4 {[%emt 0:00:56]} cxd4 {[%emt 0:00:43]} 34. Bxd4 {[%emt 0:00:13]} Nxe5 {[%emt 0:00:41]} 35. Bxe5 {[%emt 0:00:17]} Bd6 {[%emt 0:00:19]} 36. exf5 {[%emt 0:01:16]} exf5 {[%emt 0:00:07]} 37. Bxf5 {[%emt 0:02:01]} gxf5 {[%emt 0:01:42]} 38. Rg7+ {[%emt 0:01:35]} Rxg7 {[%emt 0:00:09]} 39. Rxg7+ {[%emt 0:00:02]} Qxg7 {[%emt 0:00:10]} 40. Bxg7 {[%emt 0:00:04]} Bc6+ {[%emt 0:00:08]} 41. Kh2 {[%emt 0:40:14]} Rg8 {[%emt 0:40:35]} 42. Be5 {[%emt 0:00:16]} Be7 {[%emt 0:00:00]} 43. h4 {[%emt 0:00:00]} 1/2-1/2